fUST/lending_fUST_20251119
["ID","MTS","AMOUNT","RATE_DAILY","PERIOD"]
[394430019,1763564466972,500.0,0.00040835,120]
[394430020,1763564467137,500.0,0.00040835,120]
[394430021,1763564467226,500.0,0.00040835,120]
[394430022,1763564467434,500.0,0.00040835,120]
[394430023,1763564467483,500.0,0.00040835,120]
[394430024,1763564467704,500.0,0.00040835,120]
[394430025,1763564467755,500.0,0.00040835,120]
[394430026,1763564467936,500.0,0.00040835,120]
[394430027,1763564467988,500.0,0.00040835,120]
[394430028,1763564468190,535.67194745,0.00040835,120]
[394430029,1763564468241,499.58678843,0.00040835,120]
[394430030,1763564468528,170.22101135,0.00040835,30]
[394430031,1763564469431,552.5462488,0.00040835,30]
[394430032,1763564470356,500.0,0.00040835,30]
[394430033,1763564470932,503.3539686,0.00040835,30]
[394430034,1763564472831,500.0,0.00040835,30]
[394430035,1763564473076,500.0,0.00040835,30]
[394430036,1763564473357,500.0,0.00040835,30]
[394430037,1763564473614,500.0,0.00040835,30]
[394430038,1763564473867,500.0,0.00040835,30]
[394430039,1763564474118,500.0,0.00040835,30]
[394430040,1763564474344,506.38635312,0.00040835,30]
[394430041,1763564474395,500.0,0.00040835,30]
[394430042,1763564474444,-3470.12614633,0.00013096,2]
[394430043,1763564474555,500.0,0.00040835,30]
[394430044,1763564474626,-3059.75770734,0.00013096,2]
[394430045,1763564474664,-300.0,0.00013194,2]
[394430046,1763564474744,500.0,0.00040835,30]
[394430047,1763564474842,500.0,0.00040835,30]
[394430048,1763564475002,500.0,0.00040835,30]
[394430049,1763564475055,500.0,0.00040835,30]
[394430050,1763564475113,525.22576882,0.00040835,30]
[394430051,1763564475334,500.0,0.00040835,30]
[394430052,1763564475387,504.52908719,0.00040835,30]
[394430053,1763564475607,500.0,0.00040835,120]
[394430054,1763564475855,504.44907415,0.00040835,120]
[394430055,1763564476392,514.57318193,0.00040835,30]
[394430056,1763564479306,500.0,0.00040835,30]
[394430057,1763564479559,500.0,0.00040835,30]
[394430058,1763564479787,500.0,0.00040835,30]
[394430059,1763564480078,500.0,0.00040835,30]
[394430060,1763564480364,500.0,0.00040835,30]
[394430061,1763564480604,500.0,0.00040835,30]
[394430062,1763564480941,500.0,0.00040835,30]
[394430063,1763564481176,500.0,0.00040835,30]
[394430064,1763564482239,500.0,0.00040835,30]
[394430065,1763564482391,500.0,0.00040835,30]
[394430066,1763564482638,500.0,0.00040835,120]
[394430067,1763564482777,500.0,0.00040835,30]
[394430068,1763564482886,500.0,0.00040835,120]
[394430069,1763564482938,500.0,0.00040835,30]
[394430070,1763564483132,500.0,0.00040835,120]
[394430071,1763564483182,500.0,0.00040835,30]
[394430072,1763564483412,500.0,0.00040835,120]
[394430073,1763564483465,500.0,0.00040835,30]
[394430074,1763564483654,500.0,0.00040835,120]
[394430075,1763564483704,500.0,0.00040835,30]
[394430076,1763564483947,590.38797934,0.00040835,30]
[394430077,1763564484052,500.0,0.00040835,120]
[394430078,1763564484303,500.0,0.00040835,120]
[394430079,1763564484541,500.0,0.00040835,120]
[394430080,1763564484786,553.58875201,0.00040835,120]
[394430081,1763564503347,387.637,0.00012933,2]
[394430082,1763564509128,500.0,0.00040835,30]
[394430083,1763564509400,500.0,0.00040835,30]
[394430084,1763564509772,500.0,0.00040835,30]
[394430085,1763564509887,500.0,0.00040835,30]
[394430086,1763564510140,500.0,0.00040835,30]
[394430087,1763564510369,500.0,0.00040835,30]
[394430088,1763564510660,500.0,0.00040835,30]
[394430089,1763564511240,429.13422299,0.00040835,30]
[394430091,1763564521924,153.74,5e-05,2]
[394430092,1763564522236,153.74,5.4e-05,2]
[394430093,1763564522550,153.74,5.7e-05,2]
[394430094,1763564522898,153.74,6.1e-05,2]
[394430095,1763564523342,153.74,6.5e-05,2]
[394430096,1763564523649,153.74,6.9e-05,2]
[394430097,1763564523950,153.74,7.2e-05,2]
[394430098,1763564524249,153.74,7.6e-05,2]
[394430099,1763564524870,500.0,0.00040835,30]
[394430100,1763564524903,300.0,0.00013194,2]
[394430101,1763564524939,153.74,8e-05,2]
[394430102,1763564525148,500.0,0.00040835,30]
[394430103,1763564525198,153.74,8.4e-05,2]
[394430104,1763564525420,336.04029467,0.00040835,30]
[394430105,1763564525521,153.74,8.7e-05,2]
[394430106,1763564525822,153.74,9.1e-05,2]
[394430107,1763564526126,153.74,9.5e-05,2]
[394430108,1763564526425,153.74,9.8e-05,2]
[394430109,1763564526800,153.74,0.000102,2]
[394430110,1763564527106,153.74,0.000106,2]
[394430111,1763564527412,133.01758532,0.00011,2]
[394430112,1763564527442,20.72241468,0.00011,2]
[394430113,1763564527716,153.74,0.000113,2]
[394430114,1763564528163,153.74,0.000117,2]
[394430115,1763564528544,153.74,0.000121,2]
[394430116,1763564528954,153.74,0.000125,2]
[394430117,1763564551850,204.76054762,0.00013194,2]
[394430118,1763564553605,500.0,0.00013194,2]
[394430119,1763564553642,500.0,0.00013194,2]
[394430120,1763564553812,500.0,0.00013194,2]
[394430121,1763564553850,500.0,0.00013194,2]
[394430122,1763564553915,500.0,0.00013194,2]
[394430123,1763564553947,500.0,0.00013194,2]
[394430124,1763564554000,500.0,0.00013194,2]
[394430125,1763564554034,500.0,0.00013194,2]
[394430126,1763564554081,500.0,0.00013194,2]
[394430127,1763564554114,500.0,0.00013194,2]
[394430128,1763564554174,500.0,0.00013194,2]
[394430129,1763564554207,500.0,0.00013194,2]
[394430130,1763564554257,500.0,0.00013194,2]
[394430131,1763564554288,500.0,0.00013194,2]
[394430132,1763564554348,500.0,0.00013194,2]
[394430133,1763564554391,500.0,0.00013194,2]
[394430134,1763564554433,500.0,0.00013194,2]
[394430135,1763564554490,500.0,0.00013194,2]
[394430136,1763564554551,159.5670377,0.00013194,2]
[394430137,1763564554575,340.4329623,0.00013194,2]
[394430138,1763564554614,500.0,0.00013194,2]
[394430139,1763564554737,500.0,0.00013194,2]
[394430140,1763564554784,500.0,0.00013194,2]
[394430141,1763564554840,500.0,0.00013194,2]
[394430142,1763564554873,500.0,0.00013194,2]
[394430143,1763564554925,337.99573845,0.00013194,2]
[394430144,1763564554958,500.0,0.00013194,2]
[394430145,1763564555026,500.0,0.00013194,2]
[394430146,1763564555075,500.0,0.00013194,2]
[394430147,1763564555125,500.0,0.00013194,2]
[394430148,1763564555164,500.0,0.00013194,2]
[394430149,1763564568845,-198.36947525,0.00013195,2]
[394430150,1763564568876,-1200.0,0.00013195,2]
[394430151,1763564568907,-1200.0,0.00013195,2]
[394430152,1763564568937,-500.0,0.00013196,2]
[394430153,1763564569349,4321.58129925,0.00013194,2]
[394430154,1763564569380,345.09331823,0.00013194,2]
[394430155,1763564569695,4666.67461748,0.00013194,2]
[394430156,1763564569766,4666.67461748,0.00013194,2]
[394430157,1763564569840,321.56744681,0.00013194,2]
[394430158,1763564569871,4345.10717067,0.00013194,2]
[394430159,1763564569935,4666.67461748,0.00013194,2]
[394430160,1763564569984,988.22821185,0.00013194,2]
[394430161,1763564570014,3678.44640563,0.00013194,2]
[394430162,1763564570225,4666.67461748,0.00013194,2]
[394430163,1763564570329,1654.88897689,0.00013194,2]
[394430164,1763564570358,3011.78564059,0.00013194,2]
[394430165,1763564570527,4666.67461748,0.00013194,2]
[394430166,1763564570653,2321.54974193,0.00013194,2]
[394430167,1763564570683,2345.12487555,0.00013194,2]
[394430168,1763564570765,4666.67461748,0.00013194,2]
[394430169,1763564570824,2988.21050697,0.00013194,2]
[394430170,1763564570854,1678.46411051,0.00013194,2]
[394430171,1763564570959,4666.67461748,0.00013194,2]
[394430172,1763564571015,3654.87127201,0.00013194,2]
[394430173,1763564571049,1011.80334547,0.00013194,2]
[394430174,1763564571115,4666.67461748,0.00013194,2]
[394430175,1763564571163,4321.53203705,0.00013194,2]
[394430176,1763564571193,345.14258043,0.00013194,2]
[394430177,1763564571291,4666.67461748,0.00013194,2]
[394430178,1763564571359,4666.67461748,0.00013194,2]
[394430179,1763564571414,4666.67461748,0.00013194,2]
[394430180,1763564572048,-4666.67461748,0.00013194,2]
[394430181,1763564572290,-4666.67461748,0.00013194,2]
[394430182,1763564578025,-4666.67461748,0.00013194,2]
[394430183,1763564578154,-4666.67461748,0.00013194,2]
[394430184,1763564578283,-4666.67461748,0.00013194,2]
[394430185,1763564578418,-4666.67461748,0.00013194,2]
[394430186,1763564578531,-4666.67461748,0.00013194,2]
[394430187,1763564578685,-4666.67461748,0.00013194,2]
[394430188,1763564578815,-4666.67461748,0.00013194,2]
[394430189,1763564581115,-4666.67461748,0.00013194,2]
[394430190,1763564581248,-4666.67461748,0.00013194,2]
[394430191,1763564581379,-4666.67461748,0.00013194,2]
[394430192,1763564581506,-4666.67461748,0.00013194,2]
[394430193,1763564581639,-4666.67461748,0.00013194,2]
[394430194,1763564581778,-4666.67461748,0.00013194,2]
[394430195,1763564581896,-158.39769244,0.00013194,2]
[394430196,1763564581992,2440.97,5e-05,2]
[394430197,1763564582502,2440.97,5.2e-05,2]
[394430198,1763564582800,2440.97,5.3e-05,2]
[394430199,1763564583130,2440.97,5.5e-05,2]
[394430200,1763564583416,2440.97,5.6e-05,2]
[394430201,1763564583704,2440.97,5.8e-05,2]
[394430202,1763564584054,2440.97,5.9e-05,2]
[394430203,1763564584209,605.66013172,0.00032877,120]
[394430204,1763564584343,2440.97,6.1e-05,2]
[394430205,1763564584653,2440.97,6.2e-05,2]
[394430206,1763564584982,2440.97,6.4e-05,2]
[394430207,1763564585381,2440.97,6.5e-05,2]
[394430208,1763564585597,2440.97,6.7e-05,2]
[394430209,1763564585872,2440.97,6.8e-05,2]
[394430210,1763564586164,2440.97,7e-05,2]
[394430211,1763564586609,2440.97,7.1e-05,2]
[394430212,1763564587005,2440.97,7.3e-05,2]
[394430213,1763564587296,2440.97,7.4e-05,2]
[394430214,1763564587623,2440.97,7.6e-05,2]
[394430215,1763564587910,2440.97,7.7e-05,2]
[394430216,1763564588204,2440.97,7.9e-05,2]
[394430217,1763564588553,2440.97,8e-05,2]
[394430218,1763564588857,2440.97,8.2e-05,2]
[394430219,1763564589141,2440.97,8.3e-05,2]
[394430220,1763564589467,2440.97,8.5e-05,2]
[394430221,1763564589882,2440.97,8.7e-05,2]
[394430222,1763564590167,2440.97,8.8e-05,2]
[394430223,1763564590572,2440.97,9e-05,2]
[394430224,1763564591527,2440.97,9.1e-05,2]
[394430225,1763564591936,2440.97,9.3e-05,2]
[394430226,1763564592231,2440.97,9.4e-05,2]
[394430227,1763564592537,2440.97,9.6e-05,2]
[394430228,1763564592986,2440.97,9.7e-05,2]
[394430229,1763564593215,2440.97,9.9e-05,2]
[394430230,1763564593566,2440.97,0.0001,2]
[394430231,1763564593870,2440.97,0.000102,2]
[394430232,1763564594163,2440.97,0.000103,2]
[394430233,1763564594469,2440.97,0.000105,2]
[394430234,1763564594790,2440.97,0.000106,2]
[394430235,1763564595080,2440.97,0.000108,2]
[394430236,1763564595627,2440.97,0.000109,2]
[394430237,1763564595937,2440.97,0.000111,2]
[394430238,1763564596227,2440.97,0.000112,2]
[394430239,1763564596517,2440.97,0.000114,2]
[394430240,1763564596855,2440.97,0.000115,2]
[394430241,1763564597141,2440.97,0.000117,2]
[394430242,1763564597445,236.13,0.000118,2]
[394430243,1763564597489,2204.84,0.000118,2]
[394430244,1763564597727,2440.97,0.00012,2]
[394430245,1763564598076,2440.97,0.000121,2]
[394430246,1763564598369,2440.97,0.000123,2]
[394430247,1763564598654,472.26,0.000125,2]
[394430248,1763564598680,1968.71,0.000125,2]
[394430249,1763564601703,163.0,0.00040835,120]
[394430250,1763564641903,618.91,5e-05,2]
[394430251,1763564642200,618.91,5.2e-05,2]
[394430252,1763564642614,618.91,5.3e-05,2]
[394430253,1763564642928,618.91,5.5e-05,2]
[394430254,1763564643204,618.91,5.6e-05,2]
[394430255,1763564643493,618.91,5.8e-05,2]
[394430256,1763564643823,618.91,5.9e-05,2]
[394430257,1763564644143,618.91,6.1e-05,2]
[394430258,1763564644445,618.91,6.2e-05,2]
[394430259,1763564644738,618.91,6.4e-05,2]
[394430260,1763564645047,618.91,6.5e-05,2]
[394430261,1763564645358,618.91,6.7e-05,2]
[394430262,1763564645679,618.91,6.8e-05,2]
[394430263,1763564646018,618.91,7e-05,2]
[394430264,1763564646421,618.91,7.1e-05,2]
[394430265,1763564647029,618.91,7.3e-05,2]
[394430266,1763564647335,97.45,7.4e-05,2]
[394430267,1763564647365,521.46,7.4e-05,2]
[394430268,1763564647630,618.91,7.6e-05,2]
[394430269,1763564647951,618.91,7.7e-05,2]
[394430270,1763564648115,167.7461354,0.00040835,120]
[394430271,1763564648267,618.91,7.9e-05,2]
[394430272,1763564648674,618.91,8e-05,2]
[394430273,1763564648867,618.91,8.2e-05,2]
[394430274,1763564649177,618.91,8.3e-05,2]
[394430275,1763564649556,618.91,8.5e-05,2]
[394430276,1763564649907,618.91,8.7e-05,2]
[394430277,1763564650235,618.91,8.8e-05,2]
[394430278,1763564650531,618.91,9e-05,2]
[394430279,1763564650935,618.91,9.1e-05,2]
[394430280,1763564651214,618.91,9.3e-05,2]
[394430281,1763564651609,618.91,9.4e-05,2]
[394430282,1763564651931,618.91,9.6e-05,2]
[394430283,1763564652424,618.91,9.7e-05,2]
[394430284,1763564652754,194.9,9.9e-05,2]
[394430285,1763564652781,424.01,9.9e-05,2]
[394430286,1763564653065,618.91,0.0001,2]
[394430287,1763564653404,618.91,0.000102,2]
[394430288,1763564654368,618.91,0.000103,2]
[394430289,1763564654699,618.91,0.000105,2]
[394430290,1763564655163,618.91,0.000106,2]
[394430291,1763564655505,618.91,0.000108,2]
[394430292,1763564655895,618.91,0.000109,2]
[394430293,1763564656183,618.91,0.000111,2]
[394430294,1763564656510,618.91,0.000112,2]
[394430295,1763564657098,618.91,0.000114,2]
[394430296,1763564657265,618.91,0.000115,2]
[394430297,1763564657703,618.91,0.000117,2]
[394430298,1763564658069,618.91,0.000118,2]
[394430299,1763564658466,618.91,0.00012,2]
[394430300,1763564659225,618.91,0.000121,2]
[394430301,1763564659620,292.35,0.000123,2]
[394430302,1763564659651,326.56,0.000123,2]
[394430303,1763564659933,618.91,0.000125,2]
[394430304,1763564673502,998.0,0.00040835,20]
[394430306,1763564804955,161.0,1.12e-06,2]
[394430307,1763564805992,161.0,1.12e-06,2]
[394430308,1763564807167,161.0,1.12e-06,2]
[394430309,1763564952733,165.5,0.00040835,20]
[394430314,1763565010226,-201.28276757,0.00012721,2]
[394430315,1763565010250,-201.28276757,0.00012849,2]
[394430316,1763565010275,-201.28276757,0.00012978,2]
[394430317,1763565010298,-512.09610179,0.00012994,2]
[394430318,1763565010321,-6762.2480456,0.00013073,2]
[394430319,1763565010345,-1200.0,0.00013093,2]
[394430320,1763565010368,-163.44132153,0.00013094,2]
[394430321,1763565010390,-206.57223267,0.00013095,2]
[394430322,1763565010416,-300.0,0.00013171,2]
[394430323,1763565010438,-50000.0,0.00013172,2]
[394430324,1763565010459,-532.2112468,0.00013172,2]
[394430325,1763565010482,-271.57522295,0.00013172,2]
[394430326,1763565010505,-210.98817357,0.00013172,2]
[394430327,1763565010532,-500.0,0.00013172,2]
[394430328,1763565010557,-500.0,0.00013172,2]
[394430329,1763565010589,-510.72463924,0.00013172,2]
[394430330,1763565010614,-500.0,0.00013172,2]
[394430331,1763565010649,-510.72463924,0.00013172,2]
[394430332,1763565010677,-500.0,0.00013172,2]
[394430333,1763565010704,-500.0,0.00013172,2]
[394430334,1763565010733,-510.72463924,0.00013172,2]
[394430335,1763565010762,-510.72463924,0.00013172,2]
[394430336,1763565010785,-500.0,0.00013172,2]
[394430337,1763565010809,-500.0,0.00013172,2]
[394430338,1763565010838,-510.72463924,0.00013172,2]
[394430339,1763565010862,-500.0,0.00013172,2]
[394430340,1763565010885,-500.0,0.00013172,2]
[394430341,1763565010919,-510.72463924,0.00013172,2]
[394430342,1763565010944,-500.0,0.00013172,2]
[394430343,1763565010970,-500.0,0.00013172,2]
[394430344,1763565010996,-500.0,0.00013172,2]
[394430345,1763565011028,-510.72463924,0.00013172,2]
[394430346,1763565011054,-500.0,0.00013172,2]
[394430347,1763565011082,-190.78126962,0.00013172,2]
[394430348,1763565011116,-510.72463924,0.00013172,2]
[394430349,1763565011142,-500.0,0.00013172,2]
[394430350,1763565011172,-510.72463924,0.00013172,2]
[394430351,1763565011197,-650.0,0.00013172,2]
[394430352,1763565011222,-500.0,0.00013172,2]
[394430353,1763565011247,-500.0,0.00013172,2]
[394430354,1763565011277,-510.72463924,0.00013172,2]
[394430355,1763565011302,-500.0,0.00013172,2]
[394430356,1763565011331,-510.72463924,0.00013172,2]
[394430357,1763565011355,-500.0,0.00013172,2]
[394430358,1763565011380,-500.0,0.00013172,2]
[394430359,1763565011496,-500.0,0.00013172,2]
[394430360,1763565011531,-510.72463924,0.00013172,2]
[394430361,1763565011556,-500.0,0.00013172,2]
[394430362,1763565011587,-510.72463924,0.00013172,2]
[394430363,1763565011617,-510.72463924,0.00013172,2]
[394430364,1763565011649,-510.72463924,0.00013172,2]
[394430365,1763565011679,-510.72463924,0.00013172,2]
[394430366,1763565011709,-510.72463924,0.00013172,2]
[394430367,1763565011738,-510.72463924,0.00013172,2]
[394430368,1763565011767,-510.72463924,0.00013172,2]
[394430369,1763565011800,-510.72463924,0.00013172,2]
[394430370,1763565011828,-510.72463924,0.00013172,2]
[394430371,1763565011856,-510.72463924,0.00013172,2]
[394430372,1763565011884,-510.72463924,0.00013172,2]
[394430373,1763565011916,-510.72463924,0.00013172,2]
[394430374,1763565011944,-510.72463924,0.00013172,2]
[394430375,1763565011972,-510.72463924,0.00013172,2]
[394430376,1763565012001,-510.72463924,0.00013172,2]
[394430377,1763565012031,-510.72463924,0.00013172,2]
[394430378,1763565012057,-510.72463924,0.00013172,2]
[394430379,1763565012086,-510.72463924,0.00013172,2]
[394430380,1763565012116,-510.72463924,0.00013172,2]
[394430381,1763565012146,-540.65092836,0.00013172,2]
[394430382,1763565012176,-4564.86905459,0.00013172,2]
[394430383,1763565012208,-4564.86905459,0.00013172,2]
[394430384,1763565012238,-4564.86905459,0.00013172,2]
[394430385,1763565012264,-540.65092836,0.00013172,2]
[394430386,1763565012295,-4564.86905459,0.00013172,2]
[394430387,1763565012323,-540.65092836,0.00013172,2]
[394430388,1763565012370,-4564.86905459,0.00013172,2]
[394430389,1763565012400,-540.65092836,0.00013172,2]
[394430390,1763565012431,-4564.86905459,0.00013172,2]
[394430391,1763565012458,-540.65092836,0.00013172,2]
[394430392,1763565012489,-4564.86905459,0.00013172,2]
[394430393,1763565012513,-540.65092836,0.00013172,2]
[394430394,1763565012545,-4564.86905459,0.00013172,2]
[394430395,1763565012572,-540.65092836,0.00013172,2]
[394430396,1763565012604,-4564.86905459,0.00013172,2]
[394430397,1763565012633,-540.65092836,0.00013172,2]
[394430398,1763565012660,-540.65092836,0.00013172,2]
[394430399,1763565012689,-4564.86905459,0.00013172,2]
[394430400,1763565012715,-540.65092836,0.00013172,2]
[394430401,1763565012744,-4564.86905459,0.00013172,2]
[394430402,1763565012769,-500.0,0.00013172,2]
[394430403,1763565012793,-540.65092836,0.00013172,2]
[394430404,1763565012822,-4564.86905459,0.00013172,2]
[394430405,1763565012848,-500.0,0.00013172,2]
[394430406,1763565012874,-540.65092836,0.00013172,2]
[394430407,1763565012905,-4564.86905459,0.00013172,2]
[394430408,1763565012931,-500.0,0.00013172,2]
[394430409,1763565012957,-540.65092836,0.00013172,2]
[394430410,1763565012982,-500.0,0.00013172,2]
[394430411,1763565013008,-540.65092836,0.00013172,2]
[394430412,1763565013032,-500.0,0.00013172,2]
[394430413,1763565013061,-4564.86905459,0.00013172,2]
[394430414,1763565013085,-540.65092836,0.00013172,2]
[394430415,1763565013109,-500.0,0.00013172,2]
[394430416,1763565013133,-540.65092836,0.00013172,2]
[394430417,1763565013162,-4564.86905459,0.00013172,2]
[394430418,1763565013186,-500.0,0.00013172,2]
[394430419,1763565013212,-540.65092836,0.00013172,2]
[394430420,1763565013241,-4564.86905459,0.00013172,2]
[394430421,1763565013264,-500.0,0.00013172,2]
[394430422,1763565013290,-540.65092836,0.00013172,2]
[394430423,1763565013318,-4564.86905459,0.00013172,2]
[394430424,1763565013344,-500.0,0.00013172,2]
[394430425,1763565013371,-540.65092836,0.00013172,2]
[394430426,1763565013399,-500.0,0.00013172,2]
[394430427,1763565013429,-4564.86905459,0.00013172,2]
[394430428,1763565013455,-500.0,0.00013172,2]
[394430429,1763565013480,-540.65092836,0.00013172,2]
[394430430,1763565013510,-4564.86905459,0.00013172,2]
[394430431,1763565013536,-500.0,0.00013172,2]
[394430432,1763565013563,-540.65092836,0.00013172,2]
[394430433,1763565013594,-4564.86905459,0.00013172,2]
[394430434,1763565013622,-500.0,0.00013172,2]
[394430435,1763565013654,-4564.86905459,0.00013172,2]
[394430436,1763565013681,-540.65092836,0.00013172,2]
[394430437,1763565013706,-500.0,0.00013172,2]
[394430438,1763565013737,-4564.86905459,0.00013172,2]
[394430439,1763565013766,-540.65092836,0.00013172,2]
[394430440,1763565013790,-500.0,0.00013172,2]
[394430441,1763565013820,-4564.86905459,0.00013172,2]
[394430442,1763565013845,-540.65092836,0.00013172,2]
[394430443,1763565013869,-500.0,0.00013172,2]
[394430444,1763565013895,-500.0,0.00013172,2]
[394430445,1763565013919,-540.65092836,0.00013172,2]
[394430446,1763565013948,-4564.86905459,0.00013172,2]
[394430447,1763565013972,-540.65092836,0.00013172,2]
[394430448,1763565014002,-4564.86905459,0.00013172,2]
[394430449,1763565014031,-540.65092836,0.00013172,2]
[394430450,1763565014062,-4564.86905459,0.00013172,2]
[394430451,1763565014088,-540.65092836,0.00013172,2]
[394430452,1763565014117,-4564.86905459,0.00013172,2]
[394430453,1763565014141,-540.65092836,0.00013172,2]
[394430454,1763565014169,-540.65092836,0.00013172,2]
[394430455,1763565014201,-4564.86905459,0.00013172,2]
[394430456,1763565014226,-540.65092836,0.00013172,2]
[394430457,1763565014249,-540.65092836,0.00013172,2]
[394430458,1763565014395,-540.65092836,0.00013172,2]
[394430459,1763565014422,-544.02999666,0.00013172,2]
[394430460,1763565014453,-4556.9985907,0.00013172,2]
[394430461,1763565014479,-544.02999666,0.00013172,2]
[394430462,1763565014508,-4556.9985907,0.00013172,2]
[394430463,1763565014533,-544.02999666,0.00013172,2]
[394430464,1763565014563,-4556.9985907,0.00013172,2]
[394430465,1763565014589,-544.02999666,0.00013172,2]
[394430466,1763565014623,-4556.9985907,0.00013172,2]
[394430467,1763565014650,-544.02999666,0.00013172,2]
[394430468,1763565014680,-4556.9985907,0.00013172,2]
[394430469,1763565014705,-544.02999666,0.00013172,2]
[394430470,1763565014735,-4556.9985907,0.00013172,2]
[394430471,1763565014760,-544.02999666,0.00013172,2]
[394430472,1763565014790,-4556.9985907,0.00013172,2]
[394430473,1763565014816,-544.02999666,0.00013172,2]
[394430474,1763565014847,-4556.9985907,0.00013172,2]
[394430475,1763565014872,-544.02999666,0.00013172,2]
[394430476,1763565014903,-4556.9985907,0.00013172,2]
[394430477,1763565014928,-544.02999666,0.00013172,2]
[394430478,1763565014953,-544.02999666,0.00013172,2]
[394430479,1763565014977,-500.0,0.00013172,2]
[394430480,1763565015007,-4556.9985907,0.00013172,2]
[394430481,1763565015032,-544.02999666,0.00013172,2]
[394430482,1763565015062,-4556.9985907,0.00013172,2]
[394430483,1763565015087,-449.74940126,0.00013172,2]
[394430484,1763565015113,-544.02999666,0.00013172,2]
[394430485,1763565015137,-544.02999666,0.00013172,2]
[394430486,1763565015169,-4556.9985907,0.00013172,2]
[394430487,1763565015194,-544.02999666,0.00013172,2]
[394430488,1763565015224,-4556.9985907,0.00013172,2]
[394430489,1763565015255,-4556.9985907,0.00013172,2]
[394430490,1763565015285,-4556.9985907,0.00013172,2]
[394430491,1763565015309,-544.02999666,0.00013172,2]
[394430492,1763565015341,-4556.9985907,0.00013172,2]
[394430493,1763565015372,-4556.9985907,0.00013172,2]
[394430494,1763565015401,-544.02999666,0.00013172,2]
[394430495,1763565015427,-539.60975294,0.00013172,2]
[394430496,1763565015453,-539.60975294,0.00013172,2]
[394430497,1763565015477,-539.60975294,0.00013172,2]
[394430498,1763565015504,-539.60975294,0.00013172,2]
[394430499,1763565015528,-539.60975294,0.00013172,2]
[394430500,1763565015554,-539.60975294,0.00013172,2]
[394430501,1763565015582,-539.60975294,0.00013172,2]
[394430502,1763565015609,-539.60975294,0.00013172,2]
[394430503,1763565015637,-539.60975294,0.00013172,2]
[394430504,1763565015667,-539.60975294,0.00013172,2]
[394430505,1763565015693,-539.60975294,0.00013172,2]
[394430506,1763565015721,-539.60975294,0.00013172,2]
[394430507,1763565015747,-539.60975294,0.00013172,2]
[394430508,1763565015773,-539.60975294,0.00013172,2]
[394430509,1763565015798,-539.60975294,0.00013172,2]
[394430510,1763565015823,-539.60975294,0.00013172,2]
[394430511,1763565015849,-539.60975294,0.00013172,2]
[394430512,1763565015874,-539.60975294,0.00013172,2]
[394430513,1763565015903,-539.60975294,0.00013172,2]
[394430514,1763565015932,-4468.39028478,0.00013172,2]
[394430515,1763565015963,-4468.39028478,0.00013172,2]
[394430516,1763565015992,-4468.39028478,0.00013172,2]
[394430517,1763565016022,-4468.39028478,0.00013172,2]
[394430518,1763565016052,-4468.39028478,0.00013172,2]
[394430519,1763565016083,-4468.39028478,0.00013172,2]
[394430520,1763565016114,-4468.39028478,0.00013172,2]
[394430521,1763565016147,-4468.39028478,0.00013172,2]
[394430522,1763565016180,-4468.39028478,0.00013172,2]
[394430523,1763565016212,-4468.39028478,0.00013172,2]
[394430524,1763565016242,-4468.39028478,0.00013172,2]